bitfinex/quotes_ETHUSD_20250810
["timestamp","ask_amount","ask_price","bid_price","bid_amount"]
[1754834873364,3.898,4184.3,4184.2,3.08708942]
[1754834873543,0.002,4184.3,4184.2,3.08708942]
[1754834874580,0.002,4184.3,4184.2,3.57188942]
[1754834874817,0.002,4184.3,4184.2,3.08708942]
[1754834876787,0.002,4184.3,4184.2,3.57188942]
[1754834877115,0.002,4184.5,4184.4,2.38982888]
[1754834877317,0.002,4184.5,4184.4,2.61367519]
[1754834877818,0.002,4184.5,4184.4,3.57177519]
[1754834880624,0.002,4184.5,4184.4,2.61367519]
[1754834880867,0.002,4184.5,4184.4,3.08697519]
[1754834881328,0.002,4184.5,4184.4,2.61367519]
[1754834881527,0.002,4184.5,4184.4,0.22384631]
[1754834881824,0.002,4184.5,4184.4,2.61367519]
[1754834882027,0.002,4184.5,4184.4,0.22384631]
[1754834882326,6.75498119,4184.5,4183.6,2.39023347]
[1754834882628,0.4662,4184.4,4183.7,0.22312669]
[1754834882790,0.4722,4184.4,4183.8,0.22312669]
[1754834882995,3.893,4184.5,4183.8,0.22312669]
[1754834882996,3.893,4184.5,4183.9,0.22312433]
[1754834883190,2.38988946,4184.3,4183.4,2.39040015]
[1754834883491,3.893,4184.5,4183.5,0.22313613]
[1754834883492,2.38999386,4184.2,4183.5,0.22313613]
[1754834883696,2.39007035,4184.0,4183.6,0.22313613]
[1754834883895,3.4722,4184.4,4183.2,2.39050065]
[1754834883896,6.28012631,4183.9,4183.2,2.39050065]
[1754834884097,6.28012631,4183.9,4183.3,0.22317633]
[1754834884328,3.89,4183.9,4183.5,2.39033884]
[1754834884504,3.89,4183.9,4183.7,2.39020311]
[1754834884697,3.89,4183.9,4183.5,0.4848]
[1754834884698,3.89,4183.9,4183.5,0.4733]
[1754834884931,3.89,4183.9,4182.8,0.001]
[1754834884932,3.89,4183.9,4183.6,0.22320769]
[1754834885133,3.89,4183.9,4183.2,2.39050475]
[1754834885330,3.89,4183.9,4183.3,0.22321504]
[1754834885331,0.4662,4183.8,4183.3,0.22321504]
[1754834885530,0.4662,4183.8,4183.1,2.39052403]
[1754834885531,0.4662,4183.7,4183.4,0.22321504]
[1754834885829,3.89,4183.9,4183.5,0.22321504]
[1754834886032,2.389886,4184.3,4183.6,0.22321504]
[1754834886224,3.889,4184.2,4183.6,0.4733]
[1754834886405,3.889,4184.2,4183.7,0.22333467]
[1754834886605,6.27896387,4184.2,4183.6,0.4733]
[1754834886807,6.27896387,4184.2,4183.7,0.22333447]
[1754834887037,6.27896387,4184.2,4183.6,0.4733]
[1754834887336,3.889,4184.2,4183.7,0.22333447]
[1754834887501,3.889,4184.2,4183.8,0.22338985]
[1754834887706,0.4682,4184.5,4183.7,0.4733]
[1754834887935,6.27887215,4184.4,4183.8,0.22338981]
[1754834888133,0.51145122,4184.3,4183.8,2.39013703]
[1754834888435,3.888,4184.2,4183.9,3.08682084]
[1754834888733,3.888,4184.2,4184.1,2.39000023]
[1754834888932,3.888,4184.2,4184.1,3.08672295]
[1754834889133,3.888,4184.2,4184.1,0.22342272]
[1754834889443,4.3542,4184.2,4184.1,0.22342272]
[1754834890247,3.888,4184.2,4184.1,0.22342272]
[1754834892221,7.02513255,4184.2,4184.1,0.22342272]
[1754834892423,2.39003438,4184.1,4183.4,0.4733]
[1754834892624,0.1192,4183.8,4183.5,0.22353559]
[1754834892836,3.887,4183.7,4183.6,2.61382076]
[1754834893038,3.887,4183.7,4183.6,3.57192076]
[1754834894127,3.887,4183.7,4183.6,3.57292076]
[1754834894330,3.887,4183.7,4183.6,4.18117059]
[1754834894534,3.886,4184.2,4184.1,2.38997281]
[1754834894811,3.886,4184.2,4184.1,3.0868084]
[1754834896505,3.886,4184.2,4184.1,3.5716084]
[1754834896738,0.002,4184.5,4184.4,2.38982888]
[1754834896953,0.002,4184.5,4184.2,2.38994311]
[1754834896954,3.885,4184.4,4184.3,2.38988402]
[1754834897244,3.885,4184.4,4184.3,2.61345613]
[1754834897649,3.885,4184.4,4184.3,3.07375613]
[1754834897818,0.002,4184.5,4184.4,2.38982888]
[1754834898024,3.887,4184.5,4184.4,3.07370099]
[1754834898373,3.887,4184.5,4184.4,3.55070099]
[1754834898558,1e-08,4184.5,4184.4,8.04067949]
[1754834898760,1e-08,4184.5,4184.4,11.04067949]
[1754834899679,1e-08,4184.5,4184.4,7.15667949]
[1754834899956,1e-08,4184.5,4184.4,3.55070099]
[1754834900138,1e-08,4184.5,4184.4,3.07370099]
[1754834901147,1e-08,4184.5,4184.4,3.07353817]
[1754834902912,1e-08,4184.5,4184.4,2.61323817]
[1754834903151,1e-08,4184.5,4184.4,3.07353817]
[1754834903476,1e-08,4184.5,4184.4,3.55053817]
[1754834903983,1e-08,4184.5,4184.4,3.07353817]
[1754834904372,1e-08,4184.5,4184.4,2.61323817]
[1754834904573,1e-08,4184.5,4184.4,0.22340929]
[1754834905465,0.48820001,4184.5,4184.4,0.22340929]
[1754834905654,0.28778113,4184.5,4184.4,0.22340929]
[1754834905856,0.48820001,4184.5,4183.6,0.001]
[1754834906061,2.88401758,4184.5,4183.7,2.61356634]
[1754834906255,2.3898431,4184.4,4183.8,0.22337928]
[1754834906456,2.88397712,4184.5,4183.9,0.22337928]
[1754834906785,1.28839771,4184.4,4184.0,0.22337928]
[1754834906962,1.28839771,4184.4,4184.1,0.22337928]
[1754834907173,1.28839771,4184.4,4183.6,0.001]
[1754834907174,0.4882,4184.3,4183.7,2.39021457]
[1754834907362,4.3682,4184.3,4183.8,0.22337454]
[1754834907672,4.3682,4184.3,4183.9,0.22337454]
[1754834907979,4.93445977,4184.3,4184.0,0.22337454]
[1754834908185,4.93445977,4184.3,4184.1,0.22337454]
[1754834908346,4.93445977,4184.3,4183.8,2.39015764]
[1754834908554,0.1192,4184.1,4183.9,0.22341651]
[1754834908764,0.1192,4184.1,4184.0,0.22341651]
[1754834910583,3.45394621,4184.1,4184.0,0.22341651]
[1754834910774,2.39008963,4184.0,4183.6,0.001]
[1754834910988,2.39008963,4184.0,4183.7,0.22348231]
[1754834910989,0.4882,4184.0,4183.7,0.22348231]
[1754834911190,2.39022874,4183.7,4183.6,0.001]
[1754834911379,3.879,4183.7,4183.6,0.22449249]
[1754834911771,7.3962668,4183.7,4183.6,0.22449249]
[1754834912299,7.3962668,4183.7,4183.6,0.001]
[1754834915499,37.4022668,4183.7,4183.6,0.001]
[1754834915803,36.9080668,4183.7,4183.6,0.001]
[1754834916698,4.63703806,4183.7,4183.6,0.001]
[1754834917306,4.63703806,4183.7,4183.6,0.4613]
[1754834917307,3.879,4183.7,4183.6,0.4613]
[1754834917507,3.9982,4183.7,4183.6,0.001]
[1754834918190,3.9982,4183.7,4183.6,0.22430224]
[1754834919715,3.9982,4183.7,4183.6,0.001]
[1754834920426,3.9982,4183.7,4183.6,0.4613]
[1754834921231,3.9982,4183.7,4183.6,3.55184204]
[1754834921536,3.9982,4183.7,4183.6,1.16155617]
[1754834921702,3.9982,4183.7,4183.6,3.55184204]
[1754834921903,3.879,4183.7,4183.6,3.55184204]
[1754834922255,3.879,4183.7,4183.6,4.14606246]
[1754834923740,0.1192,4184.1,4184.0,2.39005736]
[1754834923910,3.9932,4184.1,4184.0,2.61331353]
[1754834924111,3.9932,4184.1,4184.0,2.39005736]
[1754834924309,3.9932,4184.1,4184.0,3.32735736]
[1754834925833,3.874,4184.1,4184.0,3.32735736]
[1754834926057,0.11920001,4184.5,4184.1,2.39000023]
[1754834926058,3.873,4184.4,4184.1,2.39000023]
[1754834926264,3.873,4184.4,4184.3,2.389886]
[1754834926462,3.873,4184.4,4184.3,3.327186]
[1754834926648,1e-08,4184.5,4184.3,3.327186]
[1754834926649,1e-08,4184.5,4184.4,2.38982888]
[1754834927034,1e-08,4184.5,4184.4,3.32712888]
[1754834927364,1e-08,4184.5,4184.4,4.26895039]
[1754834935292,1e-08,4184.5,4184.4,3.33165039]
[1754834935653,1e-08,4184.5,4184.4,3.77575039]
[1754834937364,1e-08,4184.5,4184.4,2.50902888]
[1754834940492,1e-08,4184.5,4184.4,3.41272888]
[1754834941788,1e-08,4184.5,4184.4,2.95312888]
[1754834942186,1e-08,4184.5,4184.4,3.41272888]
[1754834942973,1e-08,4184.5,4184.4,7.27672888]
[1754834943174,1e-08,4184.5,4184.4,8.24339597]
[1754834950693,1e-08,4184.5,4184.4,11.79339597]
[1754834951098,0.002,4185.4,4185.3,2.38931498]
[1754834951329,0.002,4185.4,4185.3,6.36851498]
[1754834951700,0.002,4185.4,4185.3,7.27221498]
[1754834952029,0.002,4185.4,4185.3,8.23837543]
[1754834954230,0.002,4185.4,4185.3,8.46165655]
[1754834964887,0.002,4185.4,4185.3,3.69795655]
[1754834965086,0.002,4185.4,4185.3,7.54995655]
[1754834966351,0.002,4185.4,4185.3,8.00735655]
[1754834967356,0.002,4185.4,4185.3,8.47965655]
[1754834967588,0.002,4185.4,4185.3,11.47965655]
[1754834967893,0.002,4185.4,4185.3,12.02965655]
[1754834968089,0.002,4185.9,4185.8,2.93902957]
[1754834968294,0.002,4185.9,4185.8,10.68821447]
[1754834968587,0.002,4185.9,4185.8,11.59402418]
[1754834970193,0.002,4185.9,4185.8,11.59392182]
[1754834972176,0.002,4186.3,4186.2,2.93880129]
[1754834972416,0.002,4186.3,4186.2,7.00998005]
[1754834972572,0.002,4186.3,4186.2,4.77143588]
[1754834972780,0.002,4186.3,4186.2,8.16203588]
[1754834973478,0.002,4186.3,4186.2,8.61943588]
[1754834973891,0.002,4186.3,4186.2,7.61203588]
[1754834974087,0.002,4186.3,4186.2,2.73118005]
[1754834974326,0.002,4186.3,4186.2,9.60206806]
[1754834974487,0.002,4186.3,4186.2,11.05788005]
[1754834975787,0.002,4186.3,4186.2,6.57718005]
[1754834976190,0.4703,4188.2,4186.4,0.55]
[1754834976521,0.4703,4188.2,4187.6,2.38797472]
[1754834976687,0.4703,4188.2,4187.7,0.22317876]
[1754834976889,0.4703,4188.1,4187.9,2.38780813]
[1754834977090,0.4703,4188.0,4187.9,2.38780813]
[1754834977285,0.006,4188.4,4188.0,2.38776697]
[1754834977515,0.006,4188.4,4187.9,0.22305319]
[1754834977516,0.4703,4188.3,4187.9,2.38781552]
[1754834977820,0.4703,4188.2,4188.0,0.22301676]
[1754834978010,0.4703,4188.2,4187.3,6.23312458]
[1754834978011,0.4703,4188.2,4187.7,2.38789834]
[1754834978210,0.006,4188.1,4187.8,0.22301684]
[1754834978384,0.006,4188.1,4187.7,2.38789834]
[1754834978385,0.4703,4188.0,4187.9,0.22301684]
[1754834978806,3.0,4188.7,4187.9,0.22301684]
[1754834979039,3.0,4188.7,4188.0,0.22301684]
[1754834979040,0.4703,4188.7,4188.0,0.22301684]
[1754834979336,0.4703,4188.7,4188.1,2.61072397]
[1754834979544,0.4703,4188.7,4188.2,0.22301684]
[1754834979744,0.4703,4188.6,4188.3,0.22301684]
[1754834980041,0.4703,4188.5,4188.1,2.38770713]
[1754834980340,0.4703,4188.4,4188.2,0.2229134]
[1754834980541,2.39332316,4188.8,4188.3,0.2229134]
[1754834980749,0.4703,4188.3,4187.8,2.38787967]
[1754834980944,0.4703,4188.3,4187.9,0.22287837]
[1754834981122,1.35765292,4188.8,4188.0,0.22287837]
[1754834981123,2.38743607,4188.6,4188.0,0.22287837]
[1754834981311,0.4703,4188.2,4188.1,0.22287837]
[1754834982617,0.4703,4188.2,4188.1,0.22277988]
[1754834982810,0.4703,4188.2,4187.1,0.4574]
[1754834982811,0.4763,4188.2,4187.2,3.842]
[1754834983010,0.002,4188.0,4187.6,2.38799772]
[1754834983244,0.4723,4188.0,4187.7,0.22280147]
[1754834983447,0.4723,4188.0,4187.8,0.22280147]
[1754834983650,0.4723,4188.0,4187.9,0.22280147]
[1754834983816,0.002,4188.0,4187.9,0.22280147]
[1754834984145,0.4723,4188.0,4187.9,0.22280147]
[1754834985120,0.002,4188.0,4187.9,0.22280147]
[1754834985321,0.002,4188.0,4187.9,3.06803308]
[1754834986395,0.002,4188.0,4187.9,0.34200147]
[1754834986886,0.002,4188.0,4187.9,0.22280147]
[1754834987052,0.4723,4188.0,4187.9,0.22280147]
[1754834987448,0.002,4188.0,4187.9,0.22280147]
[1754834988451,0.002,4188.0,4187.9,2.38783161]
[1754834988684,0.002,4188.0,4187.9,3.50611702]
[1754834988984,0.002,4188.0,4187.9,3.50611308]
[1754834989979,0.002,4188.0,4187.9,4.10743806]
[1754834990685,0.002,4188.0,4187.9,3.65543806]
[1754834991554,0.002,4188.0,4187.9,3.655442]
[1754834992290,0.002,4188.0,4187.9,2.61061702]
[1754834992454,0.002,4188.0,4187.9,3.05411702]
[1754834992656,0.002,4188.0,4187.9,3.50611702]
[1754834992956,0.002,4188.0,4187.9,2.61061702]
[1754834993453,0.002,4188.0,4187.9,0.22278541]
[1754834994069,0.4997,4188.0,4187.9,0.22278541]
[1754834994703,0.002,4188.0,4187.9,0.22278541]
[1754834996982,0.4997,4188.0,4187.9,0.22278541]
[1754834997494,0.5057,4188.0,4187.9,0.22278541]
[1754834997695,2.88747459,4188.0,4187.9,0.22278541]
[1754834998017,6.93611092,4188.0,4187.9,0.22278541]
[1754834998317,2.38796667,4187.7,4187.1,0.1192]
[1754834998518,2.50716667,4187.7,4187.2,0.22333783]
[1754834998692,3.00486667,4187.7,4187.3,0.22333783]
[1754834998891,3.00486667,4187.7,4187.4,0.22333783]
[1754834999091,3.00486667,4187.7,4187.5,0.22333783]
[1754834999321,1.54930776,4187.7,4187.6,0.22333783]
[1754835000013,0.1192,4187.7,4187.6,0.22333783]
[1754835000331,6.83784565,4187.7,4187.6,0.22333783]
[1754835000688,4.4499,4187.7,4187.6,0.22333783]
[1754835000928,3.9522,4187.7,4187.6,0.22333783]
[1754835001131,3.832,4187.9,4187.6,0.66683783]
[1754835001427,0.4435,4189.0,4187.9,0.55]
[1754835001725,1e-08,4189.9,4188.1,0.55]
[1754835001908,3.00000001,4189.9,4188.3,2.38760356]
[1754835002093,3.00000001,4189.9,4188.2,1.66883783]
[1754835002094,2.50595458,4189.8,4189.2,0.1192]
[1754835002299,0.30036546,4189.7,4189.3,0.22333783]
[1754835002624,0.30036546,4189.7,4189.4,0.22333783]
[1754835002625,0.1192,4189.5,4189.4,0.22333783]
[1754835003592,0.6169,4189.5,4189.4,0.22333783]
[1754835003788,3.00381968,4189.5,4189.4,0.22333783]
[1754835004027,1.45595955,4189.5,4189.4,0.22333783]
[1754835004224,0.95825955,4189.5,4189.4,0.22333783]
[1754835004522,0.1192,4189.7,4189.4,0.66683783]
[1754835004697,3.83200001,4189.9,4189.7,2.38679905]
[1754835005022,3.83200001,4189.9,4189.8,0.22333783]
[1754835005590,3.83200001,4189.9,4189.8,2.6100866]
[1754835005796,3.83200001,4189.9,4189.8,0.34253783]
[1754835005997,4.21520001,4189.9,4189.8,0.22333783]
[1754835006423,1e-08,4189.9,4189.8,0.66683783]
[1754835006628,1e-08,4189.9,4189.8,3.1727866]
[1754835006927,1e-08,4189.9,4189.8,3.6247866]
[1754835012205,1e-08,4189.9,4189.8,3.1727866]
[1754835013032,1e-08,4189.9,4189.8,2.7292866]
[1754835013195,1e-08,4189.9,4189.8,3.1727866]
[1754835013843,1e-08,4189.9,4189.8,3.6247866]
[1754835014023,1e-08,4189.9,4189.8,4.26528902]
[1754835014198,1e-08,4189.9,4189.8,4.2891565]
[1754835014408,1e-08,4189.9,4189.8,4.26528902]
[1754835014897,1e-08,4189.9,4189.8,4.69608902]
[1754835015097,1e-08,4189.9,4189.8,4.7199565]
[1754835015434,0.002,4190.8,4189.8,4.7199565]
[1754835015435,1e-08,4190.8,4190.7,2.38623618]
[1754835015657,0.04,4191.9,4190.8,0.55]
[1754835015944,0.04,4191.9,4191.8,2.38561]
[1754835016107,0.04,4191.9,4191.8,2.60894783]
[1754835016634,0.04,4191.9,4191.8,3.05244783]
[1754835017436,0.04,4191.9,4191.8,2.60754367]
[1754835017631,0.04,4191.9,4191.8,0.22193367]
[1754835018311,3.15589718,4191.9,4191.8,0.22193367]
[1754835018496,0.28254409,4191.9,4191.2,0.436]
[1754835018697,0.28254409,4191.9,4191.3,0.22185234]
[1754835018698,0.04,4191.9,4191.3,0.22185234]
[1754835018898,2.38578074,4191.5,4191.4,0.22185234]
[1754835019260,6.69758074,4191.5,4191.4,0.22185234]
[1754835019532,4.3598,4191.5,4190.2,0.436]
[1754835019696,4.3598,4191.5,4190.0,3.824]
[1754835019697,2.38618667,4190.8,4190.3,0.22181704]
[1754835019894,3.872,4191.5,4190.4,3.04422353]
[1754835019895,3.824,4191.5,4190.4,3.04422353]
[1754835020127,2.38619068,4190.8,4190.5,0.22181704]
[1754835020309,2.38619068,4190.8,4190.6,0.22181704]
[1754835020506,2.38617924,4190.8,4190.7,0.22181704]
[1754835020802,3.0,4191.4,4190.1,2.38652674]
[1754835021002,2.38618526,4190.8,4190.2,0.22186191]
[1754835021240,2.38618526,4190.8,4190.3,0.22185849]
[1754835021401,2.38613353,4190.9,4190.4,0.22185849]
[1754835021602,2.38604942,4191.1,4190.5,0.22185849]
[1754835021933,3.21202909,4191.1,4190.6,0.22185849]
[1754835022234,2.38585263,4191.4,4190.7,0.6578668]
[1754835022414,2.38585263,4191.4,4190.8,0.2218668]
[1754835022613,5.38579184,4191.5,4190.9,0.2218668]
[1754835022813,3.823,4191.3,4191.0,0.2218668]
[1754835023034,3.823,4191.3,4190.7,0.436]
[1754835023202,3.823,4191.3,4190.8,0.22185745]
[1754835023404,3.823,4191.3,4190.9,0.22185745]
[1754835023607,3.823,4191.3,4191.0,0.22185745]
[1754835023918,6.20891456,4191.3,4190.5,2.38630061]
[1754835024108,3.823,4191.3,4190.6,0.22186223]
[1754835024438,2.38595824,4191.2,4190.7,0.22186223]
[1754835024620,2.38595824,4191.2,4190.8,0.22186223]
[1754835024827,0.4878,4191.2,4190.9,0.22186223]
[1754835025032,3.823,4191.3,4191.0,0.22186223]
[1754835025231,3.823,4191.3,4190.9,0.1192]
[1754835025546,3.823,4191.3,4191.0,0.22194424]
[1754835025715,3.823,4191.3,4190.9,0.1192]
[1754835025918,3.823,4191.3,4191.0,0.22194423]
[1754835026135,3.823,4191.3,4190.9,0.5552]
[1754835026313,3.823,4191.3,4191.0,0.22195992]
[1754835026641,3.823,4191.3,4190.9,0.1192]
[1754835026844,3.823,4191.3,4191.0,0.22200878]
[1754835027046,3.823,4191.3,4190.9,0.5552]
[1754835027228,3.823,4191.3,4191.0,0.22200853]
[1754835027423,3.823,4191.3,4191.1,0.22209977]
[1754835027641,3.823,4191.3,4190.9,0.5552]
[1754835027951,3.823,4191.3,4191.0,0.22209975]
[1754835028151,3.823,4191.3,4191.1,0.22209975]
[1754835028352,6.20889459,4191.3,4191.2,0.22228349]
[1754835028648,2.38607333,4191.0,4190.8,0.001]
[1754835028848,2.38600844,4191.1,4190.9,0.22228547]
[1754835029059,2.3860004,4191.2,4191.0,0.22228547]
[1754835029217,2.5052004,4191.2,4191.1,0.22228547]
[1754835029419,6.8130004,4191.2,4191.1,0.22228547]
[1754835029620,7.86802464,4191.2,4191.1,0.22228547]
[1754835029940,3.9392,4191.2,4191.1,0.22228547]
[1754835030250,3.9392,4191.2,4191.1,0.22253669]
[1754835030449,6.32515151,4191.2,4191.1,0.22253669]
[1754835030748,6.81295151,4191.2,4191.1,0.22253669]
[1754835031286,6.86095151,4191.2,4191.1,0.22253669]
[1754835031549,10.78563075,4191.2,4191.1,0.22253669]
[1754835031759,10.73763075,4191.2,4191.1,0.22253669]
[1754835032536,10.24983075,4191.2,4191.1,0.22253669]
[1754835033142,10.73763075,4191.2,4191.1,0.22253669]
[1754835034258,11.24955607,4191.2,4191.1,0.22253669]
[1754835034758,10.24983075,4191.2,4191.1,0.22253669]
[1754835034922,11.2495501,4191.2,4191.1,0.22253669]
[1754835035126,11.2495501,4191.2,4190.8,0.001]
[1754835035127,2.38612231,4190.9,4190.8,0.001]
[1754835035334,9.32432231,4190.9,4190.8,0.22388771]
[1754835035553,9.81212231,4190.9,4190.8,0.22388771]
[1754835035762,10.32409731,4190.9,4190.8,0.22388771]
[1754835036335,9.83629731,4190.9,4190.8,0.22388771]
[1754835036557,11.06340729,4190.9,4190.8,0.22388771]
[1754835036760,10.57560729,4190.9,4190.8,0.22388771]
[1754835037749,10.06363229,4190.9,4190.8,0.22388771]
[1754835039028,9.32432231,4190.9,4190.8,0.22388771]
[1754835039664,9.83651733,4190.9,4190.8,0.22388771]
[1754835039964,9.83651733,4190.9,4190.8,0.22402902]
[1754835040270,10.32431733,4190.9,4190.8,0.22402902]
[1754835040929,9.83651733,4190.9,4190.8,0.22402902]
[1754835041134,11.17126548,4190.9,4190.8,0.22402902]
[1754835042463,41.9293221,4190.9,4190.8,0.001]
[1754835042672,42.4793221,4190.9,4190.8,1e-08]
[1754835042847,2.38657788,4190.1,4190.0,0.001]
[1754835043177,9.56043567,4190.1,4190.0,0.22410683]
[1754835043470,10.60843069,4190.1,4190.0,0.001]
[1754835043786,2.3868627,4189.6,4189.5,0.001]
[1754835043974,6.3220627,4189.6,4189.5,0.2240949]
[1754835044269,37.92005772,4189.6,4189.5,0.001]
[1754835044472,39.13559601,4189.6,4189.5,0.001]
[1754835045063,39.08759601,4189.6,4189.5,0.001]
[1754835046140,42.13559601,4189.6,4189.5,0.001]
[1754835046341,42.35730815,4189.6,4189.5,1e-08]
[1754835046540,42.35730815,4189.6,4186.3,0.001]
[1754835046541,0.55,4189.3,4186.3,0.001]
[1754835046763,2.38762299,4188.3,4187.7,0.65874472]
[1754835046940,5.3877217,4188.1,4187.8,0.65874472]
[1754835047139,2.8993996,4189.0,4187.3,2.38816541]
[1754835047140,3.816,4188.0,4187.9,1.13746529]
[1754835047377,6.20377459,4188.0,4187.9,1.13746529]
[1754835048245,6.20377459,4188.0,4187.9,0.9147]
[1754835048475,3.816,4188.0,4187.9,0.9147]
[1754835048854,6.20377459,4188.0,4187.9,0.9147]
[1754835049983,3.816,4188.0,4187.9,0.9147]
[1754835050404,3.815,4188.0,4187.9,0.9147]
[1754835050564,3.815,4188.0,4187.9,1.13698189]
[1754835050963,3.815,4188.2,4188.1,2.38771758]
[1754835051164,3.815,4188.2,4188.1,3.50929947]
[1754835052193,10.4912,4190.2,4188.9,2.38725943]
[1754835052359,2.38669193,4189.9,4189.0,0.8993]
[1754835052563,33.815,4190.1,4189.0,0.8993]
[1754835052564,3.815,4189.8,4189.1,0.4307]
[1754835052756,3.0,4189.6,4189.1,2.81784265]
[1754835052972,3.815,4189.5,4189.2,0.8993]
[1754835053181,3.0,4189.4,4188.8,2.38730036]
[1754835053394,3.815,4189.5,4189.3,0.4307]
[1754835053599,3.0,4189.4,4189.3,0.4307]
[1754835053770,3.0,4189.4,4188.9,2.85585392]
[1754835053966,3.0,4189.4,4188.8,2.38731142]
[1754835054165,3.0,4189.4,4188.9,0.69079497]
[1754835054474,3.815,4189.5,4189.0,1.12149497]
[1754835054679,3.815,4189.5,4189.0,2.3871968]
[1754835054997,3.815,4189.5,4189.1,0.8993]
[1754835055180,3.815,4189.5,4189.2,0.8993]
[1754835055385,3.815,4189.5,4189.2,0.4686]
[1754835055585,3.815,4189.5,4189.3,0.4307]
[1754835055897,3.815,4189.5,4188.3,2.38755037]
[1754835055898,3.815,4189.5,4189.4,3.28627665]
[1754835056096,5.38652687,4190.2,4189.4,3.28627665]
[1754835056272,0.04,4190.9,4189.5,0.8993]
[1754835056474,3.814,4190.3,4189.6,1.12155683]
[1754835056782,3.814,4190.3,4189.9,0.1192]
[1754835056984,3.814,4190.3,4190.0,0.4307]
[1754835057190,3.814,4190.3,4190.1,0.4307]
[1754835057368,3.814,4190.3,4190.2,0.4307]
[1754835057893,3.814,4190.3,4190.2,0.8993]
[1754835059157,3.814,4190.3,4190.2,3.28582092]
[1754835059582,3.814,4190.3,4190.2,3.50815358]
[1754835060092,3.814,4190.3,4190.2,1.12163266]
[1754835060274,3.814,4190.3,4190.2,3.50815358]
[1754835061275,0.04,4190.9,4190.5,2.38635007]
[1754835061612,3.812,4190.8,4190.6,2.38626645]
[1754835061897,0.04,4190.9,4190.8,2.50537924]
[1754835062066,3.852,4190.9,4190.8,2.7277223]
[1754835062604,3.852,4190.9,4190.8,3.6270223]
[1754835064006,3.851,4190.9,4190.8,3.6270223]
[1754835064363,0.04,4190.9,4190.8,3.6270223]
[1754835064670,3.851,4190.9,4190.8,3.6270223]
[1754835064981,3.851,4190.9,4190.8,3.6269541]
[1754835065189,3.851,4190.9,4190.8,3.1583541]
[1754835065568,3.851,4190.9,4190.8,2.93607924]
[1754835068066,3.851,4190.9,4190.8,0.5499]
[1754835068265,3.851,4190.9,4190.8,2.93607924]
[1754835068570,3.851,4190.9,4190.5,2.38635007]
[1754835068769,3.851,4190.9,4190.6,0.34135206]
[1754835069071,3.851,4190.9,4190.6,2.93618226]
[1754835069271,3.851,4190.9,4190.6,0.5499]
[1754835069572,3.851,4190.9,4190.6,0.4307]
[1754835069801,4.48882176,4190.9,4190.6,0.4307]
[1754835069973,4.48882176,4190.9,4190.4,2.38635233]
[1754835070175,4.48882176,4190.9,4190.5,0.22213081]
[1754835070414,4.48882176,4190.9,4190.6,0.22213081]
[1754835070571,0.1192,4190.8,4190.2,2.50571109]
[1754835070880,3.809,4190.7,4190.5,2.38630545]
[1754835071207,3.809,4190.7,4189.5,2.38690988]
[1754835071208,4.1941,4190.7,4190.6,0.22210728]
[1754835072070,0.1192,4190.8,4190.6,0.65280728]
[1754835072290,0.042,4190.9,4190.7,0.65276179]
[1754835072516,0.042,4190.9,4190.8,2.38617924]
[1754835072684,0.042,4190.9,4190.8,0.4307]
[1754835072882,0.042,4190.9,4190.8,2.81687924]
[1754835073572,0.042,4190.9,4190.8,3.28547924]
[1754835073768,0.042,4190.9,4190.8,0.8993]
[1754835074093,0.042,4190.9,4190.8,2.81687924]
[1754835074984,0.042,4190.9,4190.8,3.28547924]
[1754835075583,3.849,4190.9,4190.8,3.28547924]
[1754835076291,3.849,4190.9,4190.7,2.50543194]
[1754835076492,3.849,4190.9,4190.8,2.38617924]
[1754835076698,3.849,4190.9,4190.8,2.81687924]
[1754835077010,3.849,4190.9,4190.8,3.28547924]
[1754835077507,3.849,4190.9,4190.8,3.50760303]
[1754835078487,0.042,4190.9,4190.8,3.50760303]
[1754835078885,3.848,4190.9,4190.8,3.50760303]
[1754835079709,3.848,4190.9,4190.8,3.03900303]
[1754835080508,3.848,4190.9,4190.8,3.51200303]
[1754835080671,3.848,4190.9,4190.8,2.60830303]
[1754835084017,3.848,4190.9,4190.8,0.22212379]
[1754835084979,6.63104231,4190.9,4190.8,0.22212379]
[1754835085186,10.66848609,4190.9,4190.8,0.22212379]
[1754835085407,10.62048609,4190.9,4190.8,0.22212379]
[1754835086712,7.87696378,4190.9,4190.8,0.22212379]
[1754835087015,6.9652,4190.9,4190.8,0.67132379]
[1754835087384,6.9652,4190.9,4190.8,3.05750303]
[1754835087590,6.9652,4190.9,4190.8,0.67132379]
[1754835087796,6.9652,4190.9,4190.8,0.22212379]
[1754835088332,6.9652,4190.9,4190.8,0.2234601]
[1754835088333,7.47864181,4190.9,4190.8,0.2234601]
[1754835088642,8.22670599,4190.9,4190.8,0.2234601]
[1754835089221,8.22678793,4190.9,4190.8,0.2234601]
[1754835089992,11.08951024,4190.9,4190.8,0.2234601]
[1754835090898,8.70338793,4190.9,4190.8,0.2234601]
[1754835091223,8.22678793,4190.9,4190.8,0.2234601]
[1754835091724,8.22578793,4190.9,4190.8,0.2234601]
[1754835093403,8.70238793,4190.9,4190.8,0.2234601]
[1754835093610,11.08851024,4190.9,4190.8,0.2234601]
[1754835094011,8.70238793,4190.9,4190.8,0.2234601]
[1754835095098,10.61191024,4190.9,4190.8,0.2234601]
[1754835095298,11.08851024,4190.9,4190.8,0.2234601]
[1754835095499,8.70238793,4190.9,4190.8,0.2234601]
[1754835096029,11.08851024,4190.9,4190.8,0.2234601]
[1754835096245,8.70238793,4190.9,4190.8,0.2234601]
[1754835096400,8.22578793,4190.9,4190.8,0.2234601]
[1754835096737,6.843,4190.9,4190.8,0.6726601]
[1754835098217,6.843,4190.9,4190.8,3.05883934]
[1754835098605,6.843,4190.9,4190.8,0.6726601]
[1754835099231,7.35636822,4190.9,4190.8,0.2234601]
[1754835099431,7.93663326,4190.9,4190.8,0.2234601]
[1754835099618,8.44996483,4190.9,4190.8,0.2234601]
[1754835101035,8.92656483,4190.9,4190.8,0.2234601]